Cogmind - Beta 14 @@@ ROGUE MODE // 2024.11.09 @ 05:01:37 Player: Hinzy Result: Destroyed by as-46263 with Assembled Maul Performance ------------- Evolutions (0) 0 Regions Visited (0) 0 Robots Destroyed (2) 10 Value Destroyed (14) 14 Prototype IDs (0) 0 Alien Tech Used (0) 0 Bonus (0) 0 TOTAL SCORE: 24 Bonus ------- None Cogmind --------- Core Integrity 0/250 Matter 300/300 Energy 250/250 System Corruption 0% Temperature Cool (0) Movement Core (100) Ox1 Location -11/Scrapyard Parts ------- > --- POWER (1) -------- Ion Engine > --- PROPULSION (2) --- (None) > --- UTILITY (2) ------ (None) > --- WEAPON (2) ------- (None) > --- INVENTORY (5) ---- (None) Peak State ------------ > --- POWER ------------ Ion Engine > --- PROPULSION ------- Aluminum Leg Aluminum Leg > --- UTILITY ---------- Small Storage Unit Improved Terrain Scanner > --- WEAPON ----------- Assault Rifle Assault Rifle > --- INVENTORY -------- Light Ion Engine Light Treads Light Treads EM Pulse Gun [Rating: 9] Favorites ----------- Power Light Ion Engine Engine Light Ion Engine Propulsion Light Treads Treads Light Treads Leg Aluminum Leg Utility Improved Terrain Scanner Device Improved Terrain Scanner Storage Small Storage Unit Weapon Assault Rifle Energy Gun EM Pulse Gun Ballistic Gun Assault Rifle Special Weapon Mining Laser Build | -11 ------- Run | Yrd Slots Evolved . | . Power . | . Propulsion . | . Utility . | . Weapon . | . Parts Attached 16 | 16 Power 4 | 4 Engine 4 | 4 Core . | . Reactor . | . Propulsion 4 | 4 Treads 2 | 2 Leg 2 | 2 Wheel . | . Hover . | . Flight . | . Utility 3 | 3 Device 2 | 2 Storage 1 | 1 Processor . | . Hackware . | . Protection . | . Artifact . | . Weapon 5 | 5 Energy Gun 1 | 1 Energy Cannon . | . Ballistic Gun 3 | 3 Ballistic Cannon . | . Launcher . | . Special Weapon 1 | 1 Impact Weapon . | . Slashing Weapon . | . Piercing Weapon . | . Special Melee Weapon . | . Unidentified Prototypes . | . Parts Lost 10 | 10 Power 2 | 2 Propulsion 2 | 2 Utility 2 | 2 Weapon 4 | 4 Highest Loss Streak 9 | 9 To Critical Strikes . | . Average Slot Usage (%) . | . Peak Build Rating 9 | 9 Average Rating 8 | 8 On Entrance . | . Naked Turns . | . Heaviest Build 15 | 15 Greatest Support 40 | 40 Greatest Overweight (x) 2 | 2 Average Overweight (x) . | . Largest Inventory Capacity 8 | 8 Average Capacity 5 | 5 Most Carried 6 | 6 Average Carried 3 | 3 Final Capacity 5 | 5 Final Carried . | . Class Distribution -------------------- None Dominant Class ---------------- None Resources | -11 ----------- Run | Yrd Matter Collected 248 | 248 Remotely . | . Salvage Created 26 | 26 Parts 8 | 8 Haulers Intercepted . | . Recyclers Shooed . | . Parts Field Recycled . | . Retrieved Matter . | . Parts Self-Destructed . | . Prevented . | . Kills | -11 ------- Run | Yrd Combat Hostiles Destroyed . | . Classes Destroyed 1 | 1 Tunneler 2 | 2 Best Kill Streak 1 | 1 Combat Bots Only . | . Max Kills in Single Turn 1 | 1 Gunslinging . | . Exploded . | . Melee . | . Uniques/NPCs Destroyed . | . Combat | -11 -------- Run | Yrd Hostile Shots Fired 35 | 35 Missed 10 | 10 Damage Taken 962 | 962 Core 251 | 251 Absorbed by Shields . | . Core Remaining (%) . | . Volleys Fired 22 | 22 Largest 2 | 2 Hottest 100 | 100 Shots Fired 24 | 24 Gun 5 | 5 Cannon . | . Launcher . | . Special 19 | 19 Kinetic 5 | 5 Thermal 19 | 19 Explosive . | . Electromagnetic . | . Robot Hit Streak 3 | 3 Robot Miss Streak 1 | 1 Penetration Max . | . Secondary Targets . | . Shots Hit Robots 3 | 3 Core Hits 9 | 9 Critical Kills . | . Critical Parts Destroyed . | . Critical Strikes . | . Melee Attacks . | . Impact . | . Slashing . | . Piercing . | . Sneak Attacks . | . Combat Hostiles . | . Follow-up Attacks . | . Damage Inflicted 67 | 67 Guns 38 | 38 Cannons . | . Explosions . | . Melee . | . Ramming 29 | 29 Kinetic 38 | 38 Thermal . | . Explosive . | . Electromagnetic . | . Impact . | . Slashing . | . Piercing . | . Highest Corruption . | . Average Corruption . | . Corruption Purged . | . Corruption Blocked . | . Overload Shots . | . Overflow Damage . | . Projectiles . | . Explosions . | . Melee . | . Knockbacks . | . Impact . | . Kinetic . | . Secondary . | . Self-Inflicted Damage 5 | 5 Shots . | . Rammed 21 | 21 Targets Rammed 26 | 26 Kicked 5 | 5 Crushed . | . Highest Temperature 82 | 82 Average Temperature 30 | 30 Received Heat Transfer 40 | 40 Siege Activations . | . Robots Corrupted . | . Combat Hostiles . | . Parts Fried . | . Impact Corruptions . | . Robots Melted . | . Combat Hostiles . | . Parts Melted . | . Heat Transferred . | . Parts Sabotaged . | . Parts Stolen . | . Parts Stripped . | . Power Chain Reactions . | . Alert | -11 ------- Run | Yrd Peak Influence 10 | 10 Initial . | . Average . | . Maximum Alert Level . | . Low Security (%) 100 | 100 Level 1 . | . Level 2 . | . Level 3 . | . Level 4 . | . Level 5 . | . High Security . | . Max Security . | . Squads Dispatched . | . Investigation . | . Extermination . | . Reinforcement . | . Assault . | . Garrison . | . Intercept . | . Searches Triggered . | . Construction Impeded . | . Haulers Reinforced . | . Active Scanning Responses . | . Cargo Convoy Interrupts . | . Stealth | -11 --------- Run | Yrd Distress Signals . | . Communications Jammed . | . Distress Signals . | . Times Spotted 12 | 12 Peak Tracking Total 10 | 10 Tactical Retreats . | . Traps | -11 ------- Run | Yrd Traps Triggered . | . Indirectly . | . Trap Hack Attempts . | . Triggered . | . Disarmed . | . Reprogrammed . | . Reused . | . Traps Extracted . | . Installed . | . Triggered . | . Machines | -11 ---------- Run | Yrd Machines Disabled . | . Max in Single Turn . | . Machines Repaired . | . Machines Dismantled . | . Machines Sabotaged . | . Overloaded Fab Kills . | . Hacking | -11 --------- Run | Yrd Machines Accessed . | . Terminals . | . Fabricators . | . Repair Stations . | . Recycling Units . | . Scanalyzers . | . Garrison Access . | . Total Hacks . | . Successful . | . Failed . | . Catastrophic . | . Database Lockouts . | . Manual . | . Terminals . | . Fabricators . | . Repair Stations . | . Recycling Units . | . Scanalyzers . | . Garrison Access . | . Terminal Hacks . | . Fabricator Hacks . | . Repair Station Hacks . | . Recycling Unit Hacks . | . Scanalyzer . | . Garrison Access Hacks . | . Unauthorized Hacks . | . Terminals . | . Fabricators . | . Repair Stations . | . Recycling Units . | . Scanalyzers . | . Garrison Access . | . Data Cores Recovered . | . Used . | . Hacking Detections . | . Full Trace Events . | . Feedback Events . | . Feedback Blocked . | . Robot Schematics Acquired . | . Robots Built . | . Authchips . | . Time . | . Total Robot Build Rating . | . Part Schematics Acquired . | . Parts Built . | . Authchips . | . Time . | . Total Part Build Rating . | . Parts Repaired . | . Time . | . Parts Recycled . | . Recycled Matter . | . Retrieved Matter . | . Retrieved Components . | . Parts Scanalyzed . | . Part Schematics Acquired . | . Parts Damaged . | . Bothacking | -11 ------------ Run | Yrd Used RIF Installer . | . Robots Hacked . | . Non-combat . | . Combat . | . Robot Hacks Applied . | . Relay Couplers Released . | . Fabnet Peak Effective % . | . Robots Rewired . | . Allies Hacked . | . Hacks Repelled . | . Allies | -11 -------- Run | Yrd Total Allies . | . Largest Group . | . Highest-Rated Group . | . Highest-Rated Ally . | . Total Orders . | . Ally Attacks . | . Total Damage . | . Kills . | . Allies Corrupted . | . Allies Melted . | . Intel | -11 ------- Run | Yrd Robot Analysis Total . | . Derelict Logs Recovered . | . Drone Launches . | . Drone Recoveries . | . Exploration | -11 ------------- Run | Yrd Turns Passed 3140 | 3140 Spaces Moved 298 | 298 Core 10 | 10 Treads 136 | 136 Legs 152 | 152 Wheels . | . Hover . | . Flight . | . Fastest Speed 50 | 50 Average Speed 136 | 136 Slowest Speed 160 | 160 Overloaded Moves . | . Propulsion Burnouts . | . Robots Hopped . | . Cave-ins Triggered . | . Exploration Rate (%) 27 | 27 Regions Visited . Branch Regions . Pre-discovered Areas . | . Known Exits Taken . | . Unknown Exits Taken . | . Scrap Searched . | . Spaces Dug . | . Terrain Destroyed 4 | 4 Melee . | . Projectile 4 | 4 AOE . | . Terrain Rammed . | . Walls Destroyed . | . Machines Disabled . | . Actions | -11 --------- Run | Yrd Total 2955 | 2955 Wait 2581 | 2581 Move 298 | 298 Hop . | . Pick Up 6 | 6 Fast Attach 10 | 10 Attach 6 | 6 Detach 2 | 2 Swap . | . Drop 4 | 4 Fire 22 | 22 Melee . | . Ram 4 | 4 Kick 5 | 5 Crush 17 | 17 Escape Stasis . | . Rewire . | . Trap . | . Miscellaneous . | . Route ------- -11/Scrapyard (discovered 1 exit: [*Mat]) History --------- Turn | Location | Event 8 | -11/Scrapyard | Discovered new exit (range 16) 3076 | -11/Scrapyard | Assembled infested the area 3099 | -11/Scrapyard | Core integrity fell below 50% 3123 | -11/Scrapyard | Lost 9 parts (2p1n2u4w) 3133 | -11/Scrapyard | Core integrity fell below 20% 3141 | -11/Scrapyard | Destroyed by as-46263 with Assembled Maul Last Messages --------------- 03100_ D-53 Grenadier destroyed. 03101_ K-01 Serf collects debris. 03107_ The unstable cave ceiling collapses. 03109_ K-01 Serf collects debris. 03109_ Acquired 17 matter. 03113_ K-01 Serf collects debris. 03115_ The unstable cave ceiling collapses. 03115_ Acquired Ion Engine. 03117_ K-01 Serf collects debris. 03117_ K-01 Serf destroyed. 03122_ T-07 Excavator suffers critical hit (Destroy). 03122_ Slammed into as-44720. 03130_ The unstable cave ceiling collapses. 03130_ Slammed into as-44720. 03133_ The unstable cave ceiling collapses. 03133_ Slammed into as-44720. 03138_ Lgt. Treads destroyed. 03138_ Slammed into as-44720. 03141_ Slammed into as-19051. Map ----- +----------------------------------------------------+ | ????????##?#### #?????? | | ??????#? ?##?## = # # #?????? | | ??????????###?## = # # #?????? | | ?????#????####?###### ###### ####### #####??????? | | ??????######??####### ##### ###### # ? ???????? | | ?????#??##?#######?# # ?????????? | | ?????????# ###?##### # ?????????? | | ?????#????########## ##### ##### #??????????? | | ??????#?#?#?#?# #### ###### ####### #??????????? | | ???? ?????#?##?##?## # # #??????????? | | ??????? #??##?? ##?# # # ???????????? | | ??????????#?####?#?# # # ??#?????????? | | ????? ????#?# #?#?## # #?????????????? | | ???#???##???######?# ## #?????????????? | | ?????????#??######## ###############???#????????? | | ???????????? #### ###? #??#?#??????????? | | ?#??????#???? #### ### ##?### ?????????? | | ?????????????# #??# #?#?? #?###???????????? | | ?????????????# #?## #?### ###?##? ???????? | | ????????###### #?## #?## ##?### ?????????? | | ????#?### # # #### #?#? #??#?#? ???????? | | ?#??#?# ### ### ? ##?#?? ? ??????? | | ######## # ##? ? #???## ? ?#?????? | | # a = =%!####?# ?## ## #? ? ????? | | # *%####### ###### ###### #????? | | # a a| a@%% ????? | | a a aa%% ????? | | ### ############?#?????? | | = ### < # # #####?####???? | | = #?## # ###???###????? | | #?### # # # #?#?#????????? | | # #####?#?#### # # # ##?#?#?#?????? | | #???????? ?? ### # #???###??????? | | ??????????????#### ### #?#??#???????? | | ????? ?????? ???## #?# # #####????????? | | ?????????????????# #?# # ##???###?????? | | ???????????????### #?# ###############?#??????? | | ????????????????## ?## ######???#####?###????????? | | ???????????? ????# ### ##??####?####?#?#?????????? | | ??????????? ???#?# ?## #######?##??##?##?????????? | | ???????????#?#???# ?## #???##????#??####?????????? | | ??????#?????????? ?? ?? ??##?#?##?##??????????? | | ????????#???????? ?? ## ? ##?##??#?????????????? | | ?????? ?????????? ??? ? ????????##??????????????? | | ????????????????? ??? ??????????????????????????? | | ????????????????????? ??????????????????????????? | | ?????????????????????????????????????????????????? | | ?????????????????????????????????????????????????? | | ?????????????????????????????????????????????????? | | ?????????????????????????????????????????????????? | +----------------------------------------------------+ Best States ------------- Heat Dissipation 25 Energy Generation 10 Energy Capacity 250 Matter Stores 300 Matter Capacity 300 Sight Range 16 Terrain Scan Range 16 Terrain Scan Density 10 Evasion (%) 55 Recoil Reduction 2 Item Schematics ----------------- None Robot Schematics ------------------ None Fabricated ------------ Nothing Alien Tech Used ----------------- None Achievements -------------- None Challenges ------------ None Game ------ Seed TargetPortableSteel Manual? 0 Play Time 00:18:20 Cumulative 7.1 hours Start 2024.11.09 @ 04:46:20 End 2024.11.09 @ 05:01:37 Sessions 0 Manual Loads 0 Difficulty Rogue Special Mode None Game No. 8 Rogue 8 Adventurer 0 Explorer 0 Win Type - Total 0 Types 0/0/0/0/0/0/0/0/0 Lore% 6 Gallery% 9 Achievement% 10 Wizard Run 0 Options --------- Layout 1 ASCII 0 Keyboard 1 Movement Numpad Keybinds 0 Fullscreen 1 Font 24/Proggy Map View 50x35 Zoom Use 0% Tactical HUD 1 Map Filters NONE Filters NONE Steam 1 RUN: ce1b4c9a-468e-4c99-b260-c6cdb7587557